bitfinex/quotes_BTCUSD_20250614
["timestamp","ask_amount","ask_price","bid_price","bid_amount"]
[1749898259836,0.93922301,105110.0,105100.0,0.27724805]
[1749898260001,0.93922301,105110.0,105100.0,0.25945423]
[1749898260221,0.93922301,105110.0,105100.0,0.27724805]
[1749898261317,0.93922301,105110.0,105100.0,0.25945423]
[1749898261525,0.93922301,105110.0,105100.0,0.27724805]
[1749898261724,0.93922301,105110.0,105100.0,0.25945423]
[1749898262388,0.93922301,105110.0,105100.0,0.27724805]
[1749898263038,0.93922301,105110.0,105100.0,0.25945423]
[1749898263245,0.93922301,105110.0,105100.0,0.27726581]
[1749898263698,0.93922301,105110.0,105100.0,0.25945423]
[1749898263904,0.93922301,105110.0,105100.0,0.27726581]
[1749898264363,0.93922301,105110.0,105100.0,0.25945423]
[1749898264584,0.93922301,105110.0,105100.0,0.26896879]
[1749898264799,0.93922301,105110.0,105100.0,0.28678037]
[1749898265066,0.93922301,105110.0,105100.0,0.26896879]
[1749898265282,0.93922301,105110.0,105100.0,0.28678036]
[1749898265494,0.93922301,105110.0,105100.0,0.28678037]
[1749898265705,0.93922301,105110.0,105100.0,0.26896879]
[1749898266355,0.93922301,105110.0,105100.0,0.28678037]
[1749898267218,0.96205754,105110.0,105100.0,0.27726581]
[1749898267434,0.96205754,105110.0,105100.0,0.25945423]
[1749898267873,0.96205754,105110.0,105100.0,0.27726581]
[1749898268292,0.96205754,105110.0,105100.0,0.25945423]
[1749898268504,0.96205754,105110.0,105100.0,0.2772658]
[1749898268962,0.96205754,105110.0,105100.0,0.25945423]
[1749898269186,0.96205754,105110.0,105100.0,0.27726581]
[1749898269618,0.96205754,105110.0,105100.0,0.25945423]
[1749898269834,0.96205754,105110.0,105100.0,0.27726581]
[1749898270480,0.96205754,105110.0,105100.0,0.24993958]
[1749898270691,0.96205754,105110.0,105100.0,0.25945423]
[1749898270909,0.96205754,105110.0,105100.0,0.27726581]
[1749898271118,0.40727138,105110.0,105100.0,0.27726581]
[1749898271324,0.93922301,105110.0,105100.0,0.27726581]
[1749898271587,0.96205754,105110.0,105100.0,0.27726581]
[1749898271802,0.96205754,105110.0,105100.0,0.2772658]
[1749898272010,0.96205754,105110.0,105100.0,0.27726579]
[1749898273271,0.96205754,105110.0,105100.0,0.25945423]
[1749898273681,0.96205754,105110.0,105100.0,0.27726582]
[1749898273885,0.96205754,105110.0,105100.0,0.24993958]
[1749898274093,0.96205754,105110.0,105100.0,0.06794149]
[1749898274510,0.96205754,105110.0,105100.0,0.05012989]
[1749898274723,0.96205754,105110.0,105100.0,0.06794149]
[1749898275549,0.96205754,105110.0,105100.0,0.06794213]
[1749898275953,0.96205754,105110.0,105100.0,0.06794217]
[1749898276161,0.96205754,105110.0,105100.0,0.05012989]
[1749898276382,0.96205754,105110.0,105100.0,0.25823712]
[1749898276803,0.96205754,105110.0,105100.0,0.24042484]
[1749898277027,0.96205754,105110.0,105100.0,0.25823712]
[1749898277242,0.96205754,105110.0,105100.0,0.2582367]
[1749898277461,0.96205754,105110.0,105100.0,0.24042484]
[1749898277692,0.96205754,105110.0,105100.0,0.24993958]
[1749898277922,0.96205754,105110.0,105100.0,0.26775168]
[1749898278264,0.96205754,105110.0,105100.0,0.26775176]
[1749898278470,0.96205754,105110.0,105100.0,0.24993958]
[1749898278672,0.96205754,105110.0,105100.0,0.26775181]
[1749898278883,0.96205754,105110.0,105100.0,0.24993958]
[1749898279089,0.96205754,105110.0,105100.0,0.26775181]
[1749898279326,0.96205754,105110.0,105100.0,0.24993958]
[1749898279536,0.96205754,105110.0,105100.0,0.26775181]
[1749898279979,0.96205754,105110.0,105100.0,0.24993958]
[1749898280186,0.96205754,105110.0,105100.0,0.26775181]
[1749898280416,0.96205754,105110.0,105100.0,0.25945423]
[1749898281006,0.96205754,105110.0,105100.0,0.27726646]
[1749898281392,0.96205754,105110.0,105100.0,0.27726245]
[1749898282639,0.96205754,105110.0,105100.0,0.27726244]
[1749898283410,0.96205754,105110.0,105100.0,0.27726245]
[1749898283612,0.96205754,105110.0,105100.0,0.25945423]
[1749898283857,0.96205754,105110.0,105100.0,0.27726245]
[1749898284059,0.96205754,105110.0,105100.0,0.27726646]
[1749898285051,0.96205754,105110.0,105100.0,0.25945423]
[1749898285613,0.96205754,105110.0,105100.0,0.27726646]
[1749898285818,0.96205754,105110.0,105100.0,0.25945423]
[1749898286198,0.96205754,105110.0,105100.0,0.27726646]
[1749898286600,0.96205754,105110.0,105100.0,0.25945423]
[1749898286826,0.96205754,105110.0,105100.0,0.27726646]
[1749898287040,0.96205754,105110.0,105100.0,0.25945423]
[1749898287657,0.96205754,105110.0,105100.0,0.27726646]
[1749898288413,0.96205754,105110.0,105100.0,0.25945423]
[1749898288737,0.96205754,105110.0,105100.0,0.24993958]
[1749898288944,0.96205754,105110.0,105100.0,0.26775181]
[1749898289141,0.96205754,105110.0,105100.0,0.24993958]
[1749898289340,0.96205754,105110.0,105100.0,0.26775181]
[1749898289762,0.96205754,105110.0,105100.0,0.05012989]
[1749898289962,0.96205754,105110.0,105100.0,0.06794212]
[1749898290212,0.96205754,105110.0,105100.0,0.24993958]
[1749898290428,0.96205754,105110.0,105100.0,0.25823707]
[1749898290854,0.96205754,105110.0,105100.0,0.06794215]
[1749898291053,0.96205754,105110.0,105100.0,0.2582371]
[1749898291253,0.96205754,105110.0,105100.0,0.24042484]
[1749898291476,0.96205754,105110.0,105100.0,0.25823711]
[1749898291601,0.96205754,105110.0,105100.0,0.24042484]
[1749898291993,0.96205754,105110.0,105100.0,0.2582371]
[1749898292613,0.96205754,105110.0,105100.0,0.06794215]
[1749898293546,0.96205754,105110.0,105100.0,0.06794177]
[1749898293760,0.96205754,105110.0,105100.0,0.05012989]
[1749898294202,0.96205754,105110.0,105100.0,0.08575627]
[1749898294472,0.96205754,105110.0,105100.0,0.05012989]
[1749898294699,0.96205754,105110.0,105100.0,0.06794308]
[1749898295125,0.96205754,105110.0,105100.0,0.06794332]
[1749898295558,0.96205754,105110.0,105100.0,0.05012989]
[1749898295772,0.96205754,105110.0,105100.0,0.06794344]
[1749898296238,0.96205754,105110.0,105100.0,0.05012989]
[1749898296457,0.96205754,105110.0,105100.0,0.06793498]
[1749898296905,0.96205754,105110.0,105100.0,0.05012989]
[1749898297139,0.96205754,105110.0,105100.0,0.06793498]
[1749898297572,0.96205754,105110.0,105100.0,0.06793499]
[1749898297989,0.96205754,105110.0,105100.0,0.06793498]
[1749898298201,0.96205754,105110.0,105100.0,0.05012989]
[1749898298457,0.96205754,105110.0,105100.0,0.25822993]
[1749898298648,0.96205754,105110.0,105100.0,0.24042484]
[1749898298869,0.96205754,105110.0,105100.0,0.25822993]
[1749898299209,0.96205754,105110.0,105100.0,0.05012989]
[1749898299422,0.96205754,105110.0,105100.0,0.06793498]
[1749898299836,0.96205754,105110.0,105100.0,0.05012989]
[1749898299980,0.96205754,105110.0,105100.0,0.06793458]
[1749898300187,0.96205754,105110.0,105100.0,0.05012989]
[1749898300599,0.96205754,105110.0,105100.0,0.06793458]
[1749898300809,1.05820676,105110.0,105100.0,0.06793458]
[1749898301039,0.96205754,105110.0,105100.0,0.06793475]
[1749898302097,0.96205754,105110.0,105100.0,0.06793499]
[1749898302318,0.96205754,105110.0,105100.0,0.06793479]
[1749898302566,0.96205754,105110.0,105100.0,0.05012989]
[1749898302767,0.96205754,105110.0,105100.0,0.06793472]
[1749898302969,0.96205754,105110.0,105100.0,0.05012989]
[1749898303109,0.96205754,105110.0,105100.0,0.06793472]
[1749898303349,0.96205754,105110.0,105100.0,0.05012989]
[1749898303551,0.96205754,105110.0,105100.0,0.06793472]
[1749898304234,1.05820676,105110.0,105100.0,0.06793472]
[1749898304455,1.05820676,105110.0,105100.0,0.05012989]
[1749898304675,1.05820676,105110.0,105100.0,0.06793472]
[1749898304865,1.05820676,105110.0,105100.0,0.05012989]
[1749898305113,0.96205754,105110.0,105100.0,0.06793472]
[1749898305292,0.96205754,105110.0,105100.0,0.06793473]
[1749898305700,0.96205754,105110.0,105100.0,0.05012989]
[1749898305894,0.40727138,105110.0,105100.0,0.0679347]
[1749898306096,0.93922301,105110.0,105100.0,0.05012989]
[1749898306304,0.96205754,105110.0,105100.0,0.05012989]
[1749898306507,0.96205754,105110.0,105100.0,0.0679347]
[1749898306711,0.96205754,105110.0,105100.0,0.05012989]
[1749898306925,0.96205754,105110.0,105100.0,0.0679347]
[1749898307922,0.96205754,105110.0,105100.0,0.05012989]
[1749898308117,0.96205754,105110.0,105100.0,0.0679347]
[1749898308323,1.05820676,105110.0,105100.0,0.05012989]
[1749898308535,1.05820676,105110.0,105100.0,0.06793471]
[1749898308735,0.96205754,105110.0,105100.0,0.05012989]
[1749898308925,0.96205754,105110.0,105100.0,0.06793471]
[1749898309113,0.96205754,105110.0,105100.0,0.05012989]
[1749898310187,0.96205754,105110.0,105100.0,0.06793471]
[1749898310400,0.96205754,105110.0,105100.0,0.05012989]
[1749898310603,0.96205754,105110.0,105100.0,0.06793471]
[1749898310803,0.96206014,105110.0,105100.0,0.06793471]
[1749898311044,0.96206014,105110.0,105100.0,0.06794318]
[1749898311445,0.96206014,105110.0,105100.0,0.05012989]
[1749898311647,0.96206014,105110.0,105100.0,0.06794318]
[1749898311847,0.96206014,105110.0,105100.0,0.05012989]
[1749898312280,0.96206014,105110.0,105100.0,0.06794318]
[1749898312473,0.96206014,105110.0,105100.0,0.05012989]
[1749898312644,0.96206014,105110.0,105100.0,0.06794319]
[1749898313839,0.96206014,105110.0,105100.0,0.05012989]
[1749898314040,0.96206014,105110.0,105100.0,0.06794319]
[1749898314715,0.96206014,105110.0,105100.0,0.05012989]
[1749898314930,0.96206014,105110.0,105100.0,0.06794311]
[1749898315570,0.96206014,105110.0,105100.0,0.05012989]
[1749898315757,0.96206014,105110.0,105100.0,0.0679417]
[1749898316315,0.96206014,105110.0,105100.0,0.05012989]
[1749898316734,0.96206014,105110.0,105100.0,0.0679417]
[1749898317157,0.96206014,105110.0,105100.0,0.05012989]
[1749898317977,1.05820936,105110.0,105100.0,0.05012989]
[1749898318165,1.05820936,105110.0,105100.0,0.0679417]
[1749898318720,0.5034232,105110.0,105100.0,0.05012989]
[1749898318916,0.80762014,105110.0,105100.0,0.25823665]
[1749898319146,0.96198014,105110.0,105100.0,0.06794148]
[1749898319345,0.96198014,105110.0,105100.0,0.25823612]
[1749898319693,0.98100709,105110.0,105100.0,0.26775075]
[1749898319935,0.98100709,105110.0,105100.0,0.24993958]
[1749898320160,0.98100709,105110.0,105100.0,0.26774932]
[1749898320369,0.98100709,105110.0,105100.0,0.27726397]
[1749898320586,0.98100709,105110.0,105100.0,0.27726402]
[1749898321019,0.98100709,105110.0,105100.0,0.25945423]
[1749898321261,0.98100709,105110.0,105100.0,0.27726402]
[1749898321468,0.97149389,105110.0,105100.0,0.25945423]
[1749898321917,0.97149389,105110.0,105100.0,0.27726077]
[1749898322133,0.97149389,105110.0,105100.0,0.27726052]
[1749898322425,0.97149389,105110.0,105100.0,0.27726058]
[1749898322627,0.97149389,105110.0,105100.0,0.27725305]
[1749898323071,0.97149389,105110.0,105100.0,0.25945423]
[1749898323216,0.97149389,105110.0,105100.0,0.27725323]
[1749898323453,0.04186436,105110.0,105100.0,0.29628173]
[1749898323617,0.96760408,105110.0,105100.0,0.29628198]
[1749898323823,0.96760408,105110.0,105100.0,0.30579593]
[1749898323824,0.99044121,105110.0,105100.0,0.30579593]
[1749898324073,0.99044121,105110.0,105100.0,0.30579591]
[1749898324247,0.99044121,105110.0,105100.0,0.29628175]
[1749898324455,0.99044121,105110.0,105100.0,0.29628173]
[1749898324656,0.99044121,105110.0,105100.0,0.2784829]
[1749898324921,0.43565505,105110.0,105100.0,0.29628163]
[1749898325111,0.96760408,105110.0,105100.0,0.29628163]
[1749898325315,0.99044121,105110.0,105100.0,0.2962814]
[1749898325516,0.99044121,105110.0,105100.0,0.28676711]
[1749898325893,0.99044121,105110.0,105100.0,0.28676734]
[1749898326091,0.99044121,105110.0,105100.0,0.2867645]
[1749898326499,0.99044121,105110.0,105100.0,0.26896861]
[1749898326720,0.98092773,105110.0,105100.0,0.26896861]
[1749898326929,0.98092773,105110.0,105100.0,0.28676453]
[1749898327091,0.98092773,105110.0,105100.0,0.26896861]
[1749898327450,0.98092773,105110.0,105100.0,0.28676454]
[1749898327858,0.98092773,105110.0,105100.0,0.28676518]
[1749898328060,0.98092773,105110.0,105100.0,0.26896861]
[1749898328201,0.98092773,105110.0,105100.0,0.28676536]
[1749898328736,0.98092773,105110.0,105100.0,0.28676558]
[1749898328955,0.23214157,105110.0,105100.0,0.31667643]
[1749898329155,0.81257978,105120.0,105110.0,0.0324]
[1749898329355,2.0767121,105120.0,105110.0,0.0324]
[1749898329534,2.0767121,105120.0,105110.0,0.05019552]
[1749898329735,2.0767121,105120.0,105110.0,0.0324]
[1749898329946,2.0767121,105120.0,105110.0,0.0501949]
[1749898330151,2.0767121,105120.0,105110.0,0.05019525]
[1749898330355,2.0787121,105120.0,105110.0,0.0324]
[1749898331213,2.0807121,105120.0,105110.0,0.0324]
[1749898338363,2.17686132,105120.0,105110.0,0.0324]
[1749898338572,2.0807121,105120.0,105110.0,0.0324]
[1749898342350,0.53979051,105110.0,105100.0,0.04872989]
[1749898342561,1.27213054,105110.0,105100.0,0.04872989]
[1749898344661,1.27313054,105110.0,105100.0,0.04872989]
[1749898348126,1.27313054,105110.0,105100.0,0.23902484]
[1749898348331,1.27313054,105110.0,105100.0,0.04872989]
[1749898348531,1.28264411,105110.0,105100.0,0.23902484]
[1749898348733,1.28263707,105110.0,105100.0,0.04872989]
[1749898348940,1.28263703,105110.0,105100.0,0.04872989]
[1749898349158,1.25981024,105110.0,105100.0,0.04872989]
[1749898349393,1.32231704,105110.0,105100.0,0.04872989]
[1749898356105,1.32231704,105110.0,105100.0,0.24853958]
[1749898356458,1.32231704,105110.0,105100.0,0.04872989]
[1749898361816,1.41846626,105110.0,105100.0,0.04872989]
[1749898362019,1.32231704,105110.0,105100.0,0.04872989]
[1749898374879,0.76753088,105110.0,105100.0,0.04872989]
[1749898375086,1.32231704,105110.0,105100.0,0.04872989]
[1749898380372,1.31280347,105110.0,105100.0,0.04872989]
[1749898384198,1.31280347,105110.0,105100.0,0.03094302]
[1749898384455,1.40895269,105110.0,105100.0,0.03094302]
[1749898385328,1.31280347,105110.0,105100.0,0.03094302]
[1749898386268,1.42904523,105110.0,105100.0,0.03094302]
[1749898387895,0.87425907,105110.0,105100.0,0.03094302]
[1749898388105,1.42904523,105110.0,105100.0,0.03094302]
[1749898390162,1.45756703,105110.0,105100.0,0.03094302]
[1749898390370,1.55371625,105110.0,105100.0,0.03094302]
[1749898394102,1.75371625,105110.0,105100.0,0.03094302]
[1749898394705,1.75371625,105110.0,105100.0,0.03985716]
[1749898394920,1.75371625,105110.0,105100.0,0.03985731]
[1749898395123,1.78230125,105110.0,105100.0,0.03094302]
[1749898395346,1.48636152,105110.0,105100.0,0.03985746]
[1749898395608,1.68615203,105110.0,105100.0,0.03094302]
[1749898396043,1.68615203,105110.0,105100.0,0.03985745]
[1749898396251,1.68615203,105110.0,105100.0,0.03094302]
[1749898396465,1.68615203,105110.0,105100.0,0.03985745]
[1749898396670,1.65756703,105110.0,105100.0,0.03094302]
[1749898396875,1.65756703,105110.0,105100.0,0.03985745]
[1749898397057,1.65756703,105110.0,105100.0,0.03985746]
[1749898397301,1.65756703,105110.0,105100.0,0.03985749]
[1749898398056,1.75371625,105110.0,105100.0,0.03985754]
[1749898398277,1.75371625,105110.0,105100.0,0.03985756]
[1749898399394,1.75371625,105110.0,105100.0,0.03094302]
[1749898399638,1.75371625,105110.0,105100.0,0.03985756]
[1749898400069,1.72519445,105110.0,105100.0,0.03985756]
[1749898400272,1.75350673,105110.0,105100.0,0.03094302]
[1749898400918,1.75350673,105110.0,105100.0,0.03985756]
[1749898401155,1.75350673,105110.0,105100.0,0.03094302]
[1749898401584,1.75350673,105110.0,105100.0,0.03985756]
[1749898402238,1.65735751,105110.0,105100.0,0.03094302]
[1749898402732,1.65735751,105110.0,105100.0,0.03985756]
[1749898402958,1.65735751,105110.0,105100.0,0.03094302]
[1749898403172,1.65735751,105110.0,105100.0,0.03985756]
[1749898403610,1.65735751,105110.0,105100.0,0.03985749]
[1749898403830,1.65735751,105110.0,105100.0,0.03094302]
[1749898404022,1.65735751,105110.0,105100.0,0.03985747]
[1749898404284,1.65735751,105110.0,105100.0,0.03094302]
[1749898404495,1.65735751,105110.0,105100.0,0.03985747]
[1749898404901,1.78209273,105110.0,105100.0,0.03985747]
[1749898405116,1.78209273,105110.0,105100.0,0.03094302]
[1749898405327,1.78209273,105110.0,105100.0,0.03985746]
[1749898405530,1.78209273,105110.0,105100.0,0.03094302]
[1749898405734,1.78209273,105110.0,105100.0,0.03985747]
[1749898407358,1.78209273,105110.0,105100.0,0.03094302]
[1749898407564,1.78209273,105110.0,105100.0,0.03985747]
[1749898407925,1.68594351,105110.0,105100.0,0.03094302]
[1749898408131,1.68594351,105110.0,105100.0,0.03985747]
[1749898408561,1.68594351,105110.0,105100.0,0.03094302]
[1749898408759,1.68594351,105110.0,105100.0,0.03985747]
[1749898409346,1.68594351,105110.0,105100.0,0.03094302]
[1749898409601,1.68594351,105110.0,105100.0,0.03985747]
[1749898409819,1.68594351,105110.0,105100.0,0.03094302]
[1749898410019,1.68594351,105110.0,105100.0,0.03985747]
[1749898410638,1.68594351,105110.0,105100.0,0.03094302]
[1749898410852,1.68594351,105110.0,105100.0,0.03985747]
[1749898411377,1.68594351,105110.0,105100.0,0.03094302]
[1749898411562,1.68594351,105110.0,105100.0,0.03985747]
[1749898411702,1.68594351,105110.0,105100.0,0.03094302]
[1749898412094,1.68594351,105110.0,105100.0,0.03985747]
[1749898412916,1.68594351,105110.0,105100.0,0.03094302]
[1749898413404,1.68594351,105110.0,105100.0,0.03985747]
[1749898413787,1.68594351,105110.0,105100.0,0.03094302]
[1749898414025,1.68594351,105110.0,105100.0,0.03985747]
[1749898414237,0.59220331,105110.0,105100.0,0.27410178]
[1749898414440,1.31244347,105110.0,105100.0,0.23075271]
[1749898414646,1.31244347,105110.0,105100.0,0.24026718]
[1749898415322,1.30292981,105110.0,105100.0,0.23075271]
[1749898415533,1.30292981,105110.0,105100.0,0.24026736]
[1749898415718,1.30292981,105110.0,105100.0,0.24978192]
[1749898416570,1.30292981,105110.0,105100.0,0.24026736]
[1749898416815,0.74818365,105110.0,105100.0,0.24026736]
[1749898417037,1.30296981,105110.0,105100.0,0.24026736]
[1749898417258,1.30296981,105110.0,105100.0,0.23075271]
[1749898417755,1.10888981,105110.0,105100.0,0.28427695]
[1749898417983,1.28014301,105110.0,105100.0,0.25929639]
[1749898418207,1.28014301,105110.0,105100.0,0.26881077]
[1749898418661,1.28014301,105110.0,105100.0,0.25929639]
[1749898418878,1.28014301,105110.0,105100.0,0.26881077]
[1749898419985,1.28014301,105110.0,105100.0,0.26881032]
[1749898421617,1.28014301,105110.0,105100.0,0.24978165]
[1749898425071,1.28014301,105110.0,105100.0,0.24026718]
[1749898425305,1.28014301,105110.0,105100.0,0.24978165]
[1749898429266,1.10893321,105110.0,105100.0,0.26881014]
[1749898429478,1.10893321,105110.0,105100.0,0.36495936]
[1749898429896,1.30872381,105110.0,105100.0,0.26881014]
[1749898430297,1.31823765,105110.0,105100.0,0.26881014]
[1749898430619,1.31819765,105110.0,105100.0,0.26881014]
[1749898431244,1.31819765,105110.0,105100.0,0.26881032]
[1749898433749,0.76341149,105110.0,105100.0,0.26881032]
[1749898433959,1.31819765,105110.0,105100.0,0.26881032]
[1749898434378,1.30868426,105110.0,105100.0,0.26881032]
[1749898434984,1.30868426,105110.0,105100.0,0.25929603]
[1749898436719,1.2991706,105110.0,105100.0,0.25929603]
[1749898437162,1.28014301,105110.0,105100.0,0.03094302]
[1749898437813,1.3029646,105110.0,105100.0,0.03094302]
[1749898439922,0.55409844,105110.0,105100.0,0.22123797]
[1749898440130,1.3030046,105110.0,105100.0,0.03094302]
[1749898469451,0.74821844,105110.0,105100.0,0.03094302]
[1749898469659,1.3030046,105110.0,105100.0,0.03094302]
[1749898473267,1.33118658,105110.0,105100.0,0.03094302]
[1749898476344,1.42742834,105110.0,105100.0,0.03094302]
[1749898478814,1.40460675,105110.0,105100.0,0.03094302]
[1749898479042,1.4274484,105110.0,105100.0,0.03094302]
[1749898479264,1.52359762,105110.0,105100.0,0.03094302]
[1749898479700,1.4274484,105110.0,105100.0,0.03984287]
[1749898480125,1.4274484,105110.0,105100.0,0.03984285]
[1749898481198,1.4274484,105110.0,105100.0,0.03094302]
[1749898481408,1.4274484,105110.0,105100.0,0.03984266]
[1749898481624,1.4274484,105110.0,105100.0,0.03094302]
[1749898482001,1.4274484,105110.0,105100.0,0.03984141]
[1749898482149,1.4274484,105110.0,105100.0,0.03984133]
[1749898482379,1.4274484,105110.0,105100.0,0.03094302]
[1749898482604,1.4274484,105110.0,105100.0,0.03984133]
[1749898482768,1.4274484,105110.0,105100.0,0.03094302]
[1749898482972,1.4274484,105110.0,105100.0,0.03984133]
[1749898483424,1.4274484,105110.0,105100.0,0.03094302]
[1749898484004,1.4274484,105110.0,105100.0,0.03984133]
[1749898484296,1.4274484,105110.0,105100.0,0.03983509]
[1749898484498,1.4274484,105110.0,105100.0,0.03983488]
[1749898485063,1.4274484,105110.0,105100.0,0.03983289]
[1749898485270,1.4274484,105110.0,105100.0,0.03983165]
[1749898485681,1.4274484,105110.0,105100.0,0.03094302]
[1749898485893,1.4274484,105110.0,105100.0,0.03983191]
[1749898486100,1.4274484,105110.0,105100.0,0.03094302]
[1749898487337,1.4274484,105110.0,105100.0,0.0398335]
[1749898487745,1.4274484,105110.0,105100.0,0.03094302]
[1749898487955,1.4274484,105110.0,105100.0,0.0398335]
[1749898488585,1.4274484,105110.0,105100.0,0.03094302]
[1749898488799,1.4274484,105110.0,105100.0,0.03983359]
[1749898489216,1.4274484,105110.0,105100.0,0.0398336]
[1749898489429,1.4274484,105110.0,105100.0,0.03983359]
[1749898490409,1.4274484,105110.0,105100.0,0.03983366]
[1749898491037,1.4274484,105110.0,105100.0,0.03983992]
[1749898491268,1.4274484,105110.0,105100.0,0.0398399]
[1749898491480,1.4274458,105110.0,105100.0,0.0398399]
[1749898491692,1.4274458,105110.0,105100.0,0.03983991]
[1749898492137,1.4274458,105110.0,105100.0,0.03094302]
[1749898496647,1.0874458,105110.0,105100.0,0.03094302]
[1749898501776,0.86514382,105110.0,105100.0,0.03094302]
[1749898502202,0.77270521,105110.0,105100.0,0.23075271]
[1749898502438,0.97249572,105110.0,105100.0,0.24978174]
[1749898502661,0.95917006,105110.0,105100.0,0.26881023]
[1749898502877,0.97819765,105110.0,105100.0,0.25929603]
[1749898503089,0.96868426,105110.0,105100.0,0.24978174]
[1749898503292,0.9591706,105110.0,105100.0,0.24026736]
[1749898503497,0.94965685,105110.0,105100.0,0.24978192]
[1749898504143,0.94965685,105110.0,105100.0,0.24026736]
[1749898504353,0.94014301,105110.0,105100.0,0.24026736]
[1749898505224,0.94014301,105110.0,105100.0,0.25803151]
[1749898505438,0.94014301,105110.0,105100.0,0.03094302]
[1749898505855,0.94014301,105110.0,105100.0,0.04870723]
[1749898506298,0.94014301,105110.0,105100.0,0.03094302]
[1749898506512,0.94014301,105110.0,105100.0,0.04870723]
[1749898506724,0.94014301,105110.0,105100.0,0.03094302]
[1749898506943,0.94014301,105110.0,105100.0,0.04870723]
[1749898507153,0.94014301,105110.0,105100.0,0.03094302]
[1749898507360,0.94014301,105110.0,105100.0,0.04870723]
[1749898508025,0.94014301,105110.0,105100.0,0.04870725]
[1749898508229,0.94014301,105110.0,105100.0,0.04870941]
[1749898508458,0.94014301,105110.0,105100.0,0.03094302]
[1749898508666,0.94014301,105110.0,105100.0,0.04871087]
[1749898508881,0.94014301,105110.0,105100.0,0.03094302]
[1749898509331,0.96296971,105110.0,105100.0,0.03094302]
[1749898515026,1.05911893,105110.0,105100.0,0.03094302]
[1749898517891,0.96296971,105110.0,105100.0,0.03094302]
[1749898523871,1.05921147,105110.0,105100.0,0.03094302]
[1749898526631,1.05921147,105110.0,105100.0,0.03983214]
[1749898526851,1.05921147,105110.0,105100.0,0.03094302]
[1749898527054,1.05921147,105110.0,105100.0,0.03983213]
[1749898527588,1.05921147,105110.0,105100.0,0.03983214]
[1749898527828,1.05921147,105110.0,105100.0,0.03983213]
[1749898528232,1.05921147,105110.0,105100.0,0.03094302]
[1749898528662,1.05921147,105110.0,105100.0,0.03983211]
[1749898528827,1.05921147,105110.0,105100.0,0.03983215]
[1749898529027,1.05921147,105110.0,105100.0,0.0398328]
[1749898529227,1.05921147,105110.0,105100.0,0.03983345]
[1749898529498,1.05921147,105110.0,105100.0,0.03983373]
[1749898529668,1.05921147,105110.0,105100.0,0.0398334]
[1749898529868,1.05921147,105110.0,105100.0,0.03094302]
[1749898530074,1.05921147,105110.0,105100.0,0.03983367]
[1749898530272,1.05921147,105110.0,105100.0,0.03094302]
[1749898530441,1.05921147,105110.0,105100.0,0.03983377]
[1749898531350,1.05921147,105110.0,105100.0,0.03983395]
[1749898531787,1.05921147,105110.0,105100.0,0.03983397]
[1749898532002,1.05921147,105110.0,105100.0,0.03094302]
[1749898532183,1.05921147,105110.0,105100.0,0.03983397]
[1749898532551,1.05921147,105110.0,105100.0,0.03094302]
[1749898539908,1.05821147,105110.0,105100.0,0.03094302]
[1749898540334,1.06221147,105110.0,105100.0,0.03094302]
[1749898551519,1.06222613,105110.0,105100.0,0.03094302]
[1749898557220,0.96598437,105110.0,105100.0,0.22123797]
[1749898561809,0.96598437,105110.0,105100.0,0.03094302]
[1749898562264,0.79093178,105110.0,105100.0,0.24026718]
[1749898562479,0.98497178,105110.0,105100.0,0.24978156]
[1749898562686,0.96213042,105110.0,105100.0,0.24026718]
[1749898563156,0.95261685,105110.0,105100.0,0.24026736]
[1749898563839,0.95261685,105110.0,105100.0,0.24978192]
[1749898564271,0.94310301,105110.0,105100.0,0.24978192]
[1749898565752,0.94310301,105110.0,105100.0,0.24026736]
[1749898567477,0.94310301,105110.0,105100.0,0.04045776]
[1749898567713,0.94310301,105110.0,105100.0,0.23075271]
[1749898571517,0.96593197,105110.0,105100.0,0.03094302]
[1749898577673,0.96593197,105110.0,105100.0,0.22123797]
[1749898578713,0.96593197,105110.0,105100.0,0.03094302]
[1749898579347,0.96593197,105110.0,105100.0,0.22123797]
[1749898580349,0.96593197,105110.0,105100.0,0.03094302]
[1749898597602,0.81157197,105110.0,105100.0,0.03094302]
[1749898597892,0.96589197,105110.0,105100.0,0.03094302]
[1749898611583,0.9659064,105110.0,105100.0,0.03094302]
[1749898617997,0.9944894,105110.0,105100.0,0.03094302]
[1749898627741,0.77380814,105110.0,105100.0,0.03094302]
[1749898627957,0.96408499,105110.0,105100.0,0.03094302]
[1749898628392,0.40929883,105110.0,105100.0,0.03094302]
[1749898628600,0.9412416,105110.0,105100.0,0.03094302]
[1749898628808,0.96408499,105110.0,105100.0,0.03094302]
[1749898633998,0.96591122,105110.0,105100.0,0.03094302]
[1749898634242,0.9618264,105110.0,105100.0,0.03094302]
[1749898638797,0.40704024,105110.0,105100.0,0.03094302]
[1749898639004,0.93898301,105110.0,105100.0,0.03094302]
[1749898639232,0.9618264,105110.0,105100.0,0.03094302]
[1749898646288,0.7679064,105110.0,105100.0,0.03094302]
[1749898646468,0.9617864,105110.0,105100.0,0.03094302]
[1749898657057,0.7679064,105110.0,105100.0,0.22123797]
[1749898657265,0.9617864,105110.0,105100.0,0.03094302]
[1749898657755,0.41651408,105110.0,105100.0,0.25668405]
[1749898657962,0.94845685,105110.0,105100.0,0.23075262]
[1749898658172,0.97130024,105110.0,105100.0,0.23075262]
[1749898658318,0.97130024,105110.0,105100.0,0.23075271]
[1749898660250,0.9617864,105110.0,105100.0,0.04045776]
[1749898660475,0.9617864,105110.0,105100.0,0.23075271]
[1749898661056,0.9617864,105110.0,105100.0,0.03094302]
[1749898682154,0.96178539,105110.0,105100.0,0.03094302]
[1749898696301,1.05802715,105110.0,105100.0,0.03094302]
[1749898697000,1.05802715,105110.0,105100.0,0.0398578]
[1749898697220,1.05802715,105110.0,105100.0,0.03985777]
[1749898697435,1.05802715,105110.0,105100.0,0.03094302]
[1749898697650,1.05802715,105110.0,105100.0,0.0398578]
[1749898697867,1.05802715,105110.0,105100.0,0.03094302]
[1749898698085,1.05802715,105110.0,105100.0,0.03985779]
[1749898699656,1.05802715,105110.0,105100.0,0.03094302]
[1749898700283,1.05802715,105110.0,105100.0,0.03985779]
[1749898701671,1.05802715,105110.0,105100.0,0.03094302]
[1749898701880,1.05802715,105110.0,105100.0,0.03984823]
[1749898702661,1.05802715,105110.0,105100.0,0.03094302]
[1749898703296,1.05802715,105110.0,105100.0,0.03984823]
[1749898704937,1.05802715,105110.0,105100.0,0.03094302]
[1749898705145,1.05802715,105110.0,105100.0,0.03984823]
[1749898705598,1.05802715,105110.0,105100.0,0.03094302]
[1749898705768,1.05802715,105110.0,105100.0,0.03985778]
[1749898706140,1.05802715,105110.0,105100.0,0.03094302]
[1749898706572,1.05802715,105110.0,105100.0,0.03985778]
[1749898706966,1.05802715,105110.0,105100.0,0.03094302]
[1749898707659,1.05802715,105110.0,105100.0,0.03985778]
[1749898707874,1.05802715,105110.0,105100.0,0.03094302]
[1749898708538,1.05802715,105110.0,105100.0,0.03985776]
[1749898709140,1.05802715,105110.0,105100.0,0.03985777]
[1749898710195,1.05802715,105110.0,105100.0,0.03094302]
[1749898710403,1.05802715,105110.0,105100.0,0.03985777]
[1749898711047,1.05802715,105110.0,105100.0,0.03985779]
[1749898711468,1.05802715,105110.0,105100.0,0.03985778]
[1749898712033,1.05802715,105110.0,105100.0,0.03985777]